Cogmind - Beta 15 @@@ ROGUE MODE // 2025.09.19 @ 20:22:06 Player: beans Result: Destroyed by Piercing Trap Performance ------------- Evolutions (0) 0 Regions Visited (3) 600 Robots Destroyed (7) 35 Value Destroyed (179) 179 Prototype IDs (3) 60 Alien Tech Used (0) 0 Bonus (0) 0 TOTAL SCORE: 874 Bonus ------- None Cogmind --------- Core Integrity 0/250 Matter 300/300 Energy 157/160 System Corruption 0% Temperature Cool (6) Movement Flying (37) Location -10/Subcaves Parts ------- > --- POWER (1) -------- Light Nuclear Core > --- PROPULSION (2) --- Flight Unit Flight Unit > --- UTILITY (2) ------ Heat Sink > --- WEAPON (2) ------- Battle Rifle > --- INVENTORY (5) ---- Decoy Drone Bay (16/16) Small Laser Subdweller Machine Gun Peak State ------------ > --- POWER ------------ Light Nuclear Core > --- PROPULSION ------- Flight Unit Flight Unit > --- UTILITY ---------- Decoy Drone Bay > --- WEAPON ----------- Small Laser > --- INVENTORY -------- Heat Sink [Rating: 20] Favorites ----------- Power Light Nuclear Core Engine Ion Engine Power Core Light Nuclear Core Propulsion Flight Unit Flight Unit Flight Unit Utility Heat Sink Device Heat Sink Weapon Small Laser Energy Gun Small Laser Ballistic Gun Light Assault Rifle Build | -11 -10 -10 -10 ------- Run | Yrd Mat Min Sub Slots Evolved . | . . . . Power . | . . . . Propulsion . | . . . . Utility . | . . . . Weapon . | . . . . Parts Attached 10 | 3 5 1 1 Power 2 | 1 1 . . Engine 1 | 1 . . . Core 1 | . 1 . . Reactor . | . . . . Propulsion 2 | . 2 . . Treads . | . . . . Leg . | . . . . Wheel . | . . . . Hover . | . . . . Flight 2 | . 2 . . Utility 2 | . 1 1 . Device 2 | . 1 1 . Storage . | . . . . Processor . | . . . . Hackware . | . . . . Protection . | . . . . Artifact . | . . . . Weapon 4 | 2 1 . 1 Energy Gun 1 | . 1 . . Energy Cannon . | . . . . Ballistic Gun 3 | 2 . . 1 Ballistic Cannon . | . . . . Launcher . | . . . . Special Weapon . | . . . . Impact Weapon . | . . . . Slashing Weapon . | . . . . Piercing Weapon . | . . . . Special Melee Weapon . | . . . . Unidentified Prototypes 1 | . . 1 . Parts Lost 3 | . 3 . . Power 1 | . 1 . . Propulsion . | . . . . Utility . | . . . . Weapon 2 | . 2 . . Highest Loss Streak 3 | . 3 . . To Critical Strikes . | . . . . Average Backups . | . . . 1 Power . | . . . . Propulsion . | . . . . Utility . | . . . 1 Weapon . | . . . . Tool/Special . | . . . . Unused Backups 1 | . . . 1 Power . | . . . . Propulsion . | . . . . Utility . | . . . . Weapon 1 | . . . 1 Tool/Special . | . . . . Average Slot Usage (%) 50 | . 41 71 71 Engine 4 | . 6 . . Core 8 | . 5 14 14 Flight 9 | . 1 28 28 Device 8 | . 5 14 14 Energy Gun 7 | . 6 14 7 Ballistic Gun 10 | . 14 . 6 Peak Build Rating 20 | 3 7 20 10 Average Rating 4 | 2 3 8 8 On Entrance 4 | . 3 7 8 Naked Turns 1 | . 1 . . Heaviest Build 8 | 8 8 7 8 Greatest Support 8 | 3 8 8 8 Greatest Overweight (x) 2 | 2 2 . . Average Overweight (x) . | 1 1 . . Largest Inventory Capacity 5 | 5 5 5 5 Average Capacity 5 | 5 5 5 5 Most Carried 4 | 2 2 3 4 Average Carried . | . . 1 2 Final Capacity 5 | 5 5 5 5 Final Carried 4 | . . 2 4 Class Distribution -------------------- 71% | Mutant 28% | Scavenger-Mutant Dominant Class ---------------- Mutant | -10/Materials Scavenger-Mutant | -10/Mines Scavenger-Mutant | -10/Subcaves Resources | -11 -10 -10 -10 ----------- Run | Yrd Mat Min Sub Matter Collected 352 | 192 118 . 42 Remotely . | . . . . Salvage Created 207 | . 207 . . Parts 15 | . 15 . . Haulers Intercepted . | . . . . Recyclers Shooed 1 | . 1 . . Parts Field Recycled . | . . . . Retrieved Matter . | . . . . Parts Self-Destructed . | . . . . Prevented . | . . . . Kills | -11 -10 -10 -10 ------- Run | Yrd Mat Min Sub Combat Hostiles Destroyed 7 | . 7 . . Guns 7 | . 7 . . Classes Destroyed 2 | . 2 . . Swarmer 3 | . 3 . . Grunt 4 | . 4 . . Best Kill Streak 4 | . 4 . . Combat Bots Only 4 | . 4 . . Max Kills in Single Turn 1 | . 1 . . Gunslinging . | . . . . Exploded . | . . . . Melee . | . . . . Uniques/NPCs Destroyed . | . . . . Combat | -11 -10 -10 -10 -------- Run | Yrd Mat Min Sub Hostile Shots Fired 62 | . 60 2 . Missed 15 | . 14 1 . Hits 47 | . 46 1 . Projectile 47 | . 46 1 . Critical Strikes 1 | . . 1 . Damage Taken 584 | . 512 6 66 Core 269 | . 225 . 44 Absorbed by Shields . | . . . . Core Remaining (%) 100 | 100 . . . Volleys Fired 35 | 1 32 1 1 Largest 2 | 2 2 1 1 Hottest 40 | 40 40 40 25 Shots Fired 47 | 2 43 1 1 Gun 47 | 2 43 1 1 Cannon . | . . . . Launcher . | . . . . Special . | . . . . Kinetic 31 | 2 28 . 1 Thermal 16 | . 15 1 . Explosive . | . . . . Electromagnetic . | . . . . Robot Hit Streak 12 | 2 12 . . Robot Miss Streak 2 | . 2 . . Penetration Max . | . . . . Secondary Targets 1 | . 1 . . Max Gunslinging Chain 1 | . 1 . . Shots Hit Robots 32 | 2 30 . . Core Hits 13 | 1 12 . . Critical Kills . | . . . . Critical Parts Destroyed . | . . . . Critical Strikes . | . . . . Melee Attacks . | . . . . Impact . | . . . . Slashing . | . . . . Piercing . | . . . . Sneak Attacks . | . . . . Combat Hostiles . | . . . . Follow-up Attacks . | . . . . Damage Inflicted 341 | 16 325 . . Guns 341 | 16 325 . . Cannons . | . . . . Explosions . | . . . . Melee . | . . . . Ramming . | . . . . Kinetic 241 | 16 225 . . Thermal 100 | . 100 . . Explosive . | . . . . Electromagnetic . | . . . . Impact . | . . . . Slashing . | . . . . Piercing . | . . . . Highest Corruption . | . . . . Average Corruption . | . . . . Corruption Purged . | . . . . Corruption Blocked . | . . . . Overload Shots . | . . . . Overflow Damage . | . . . . Projectiles . | . . . . Explosions . | . . . . Melee . | . . . . Knockbacks . | . . . . Impact . | . . . . Kinetic . | . . . . Secondary . | . . . . Self-Inflicted Damage . | . . . . Shots . | . . . . Rammed . | . . . . Targets Rammed . | . . . . Kicked . | . . . . Crushed . | . . . . Highest Temperature 33 | . 33 . . Average Temperature 9 | . 9 . . Received Heat Transfer 237 | . 237 . . Siege Activations . | . . . . Martial Activations . | . . . . Shielding Activations . | . . . . Robots Disrupted . | . . . . Combat Hostiles . | . . . . Robots Corrupted . | . . . . Combat Hostiles . | . . . . Parts Fried . | . . . . Impact Corruptions . | . . . . Robots Melted . | . . . . Combat Hostiles . | . . . . Parts Melted . | . . . . Heat Transferred 225 | . 225 . . Parts Sabotaged . | . . . . Parts Stolen . | . . . . Parts Stripped . | . . . . Power Chain Reactions . | . . . . Alert | -11 -10 -10 -10 ------- Run | Yrd Mat Min Sub Maximum Alert Level . | . . . . Low Security (%) 100 | 100 100 100 . Level 1 . | . . . . Level 2 . | . . . . Level 3 . | . . . . Level 4 . | . . . . Level 5 . | . . . . High Security . | . . . . Max Security . | . . . . Peak Influence 60 | . 60 19 . Initial 19 | . . 19 . Average 14 | . 18 9 . Influence Increases 170 | . 170 . . Destroy 0b10 Robot/C 140 | . 140 . . Destroy Leader 30 | . 30 . . Influence Decreases 170 | . 120 50 . Entered New Map 31 | . . 31 . Time Decay 109 | . 90 19 . Lost Part 30 | . 30 . . Squads Dispatched 1 | . 1 . . Investigation 1 | . 1 . . Extermination . | . . . . Reinforcement . | . . . . Assault . | . . . . Garrison . | . . . . Intercept . | . . . . Searches Triggered . | . . . . Construction Impeded . | . . . . Haulers Reinforced . | . . . . Active Scanning Responses . | . . . . Cargo Convoy Interrupts . | . . . . Stealth | -11 -10 -10 -10 --------- Run | Yrd Mat Min Sub Distress Signals . | . . . . Communications Jammed . | . . . . Distress Signals . | . . . . Times Spotted 9 | . 7 2 . Peak Tracking Total 3 | . 3 2 . Tactical Retreats . | . . . . Traps | -11 -10 -10 -10 ------- Run | Yrd Mat Min Sub Traps Triggered 1 | . . . 1 Indirectly . | . . . . Trap Hack Attempts . | . . . . Triggered . | . . . . Disarmed . | . . . . Reprogrammed . | . . . . Reused . | . . . . Traps Extracted . | . . . . Installed . | . . . . Triggered . | . . . . Machines | -11 -10 -10 -10 ---------- Run | Yrd Mat Min Sub Machines Disabled . | . . . . Max in Single Turn . | . . . . Machines Repaired . | . . . . Machines Dismantled . | . . . . Machines Sabotaged . | . . . . Overloaded Fab Kills . | . . . . Hacking | -11 -10 -10 -10 --------- Run | Yrd Mat Min Sub Machines Accessed 4 | . 1 1 2 Terminals 1 | . 1 . . Fabricators . | . . . . Repair Stations . | . . . . Recycling Units . | . . . . Scanalyzers . | . . . . Garrison Access . | . . . . Total Hacks 7 | . 3 1 3 Successful 5 | . 1 1 3 Failed 2 | . 2 . . Catastrophic 1 | . 1 . . Database Lockouts . | . . . . Manual 1 | . 1 . . Terminals 3 | . 3 . . Fabricators . | . . . . Repair Stations . | . . . . Recycling Units . | . . . . Scanalyzers . | . . . . Garrison Access . | . . . . Terminal Hacks 5 | . 1 1 3 Record 1 | . . . 1 Prototype ID Bank 1 | . 1 . . Open Door 2 | . . 1 1 Release Object 1 | . . . 1 Fabricator Hacks . | . . . . Repair Station Hacks . | . . . . Recycling Unit Hacks . | . . . . Scanalyzer . | . . . . Garrison Access Hacks . | . . . . Unauthorized Hacks . | . . . . Terminals . | . . . . Fabricators . | . . . . Repair Stations . | . . . . Recycling Units . | . . . . Scanalyzers . | . . . . Garrison Access . | . . . . Data Cores Recovered . | . . . . Used . | . . . . Hacking Detections 1 | . 1 . . Full Trace Events 1 | . 1 . . Feedback Events . | . . . . Feedback Blocked . | . . . . Robot Schematics Acquired . | . . . . Robots Built . | . . . . Authchips . | . . . . Time . | . . . . Total Robot Build Rating . | . . . . Part Schematics Acquired . | . . . . Parts Built . | . . . . Authchips . | . . . . Time . | . . . . Total Part Build Rating . | . . . . Parts Repaired . | . . . . Time . | . . . . Parts Recycled . | . . . . Recycled Matter . | . . . . Retrieved Matter . | . . . . Retrieved Components . | . . . . Parts Scanalyzed . | . . . . Part Schematics Acquired . | . . . . Parts Damaged . | . . . . Bothacking | -11 -10 -10 -10 ------------ Run | Yrd Mat Min Sub Used RIF Installer . | . . . . Robots Hacked . | . . . . Non-combat . | . . . . Combat . | . . . . Robot Hacks Applied . | . . . . Relay Couplers Released . | . . . . Fabnet Peak Effective % . | . . . . Robots Rewired . | . . . . Allies Hacked . | . . . . Hacks Repelled . | . . . . Allies | -11 -10 -10 -10 -------- Run | Yrd Mat Min Sub Total Allies . | . . . . Largest Group . | . . . . Highest-Rated Group . | . . . . Highest-Rated Ally . | . . . . Total Orders . | . . . . Ally Attacks . | . . . . Total Damage . | . . . . Kills . | . . . . Allies Corrupted . | . . . . Allies Melted . | . . . . Intel | -11 -10 -10 -10 ------- Run | Yrd Mat Min Sub Active Infowar (turns) . | . . . . Robot Analysis Total . | . . . . Derelict Logs Recovered 2 | . . 1 1 Drone Launches . | . . . . Drone Recoveries . | . . . . Exploration | -11 -10 -10 -10 ------------- Run | Yrd Mat Min Sub Turns Passed 510 | 56 316 56 82 Spaces Moved 580 | 44 200 134 202 Core 200 | 44 156 . . Treads . | . . . . Legs . | . . . . Wheels . | . . . . Hover . | . . . . Flight 380 | . 44 134 202 Fastest Speed 37 | 50 37 37 37 Average Speed 69 | 109 116 37 37 Slowest Speed 150 | 150 150 37 37 Overloaded Moves . | . . . . Propulsion Burnouts . | . . . . Robots Hopped . | . . . . Potential Cave-ins . | . . . . Cave-ins Triggered . | . . . . Exploration Rate (%) 18 | 4 32 21 16 Regions Visited 3 Branch Regions 2 Pre-discovered Areas . | . . . . Known Exits Taken . | . . . . Unknown Exits Taken 3 | 1 1 1 . Scrap Searched 1 | . . . 1 Spaces Dug . | . . . . Terrain Destroyed . | . . . . Melee . | . . . . Projectile . | . . . . AOE . | . . . . Terrain Rammed . | . . . . Walls Destroyed . | . . . . Machines Disabled . | . . . . Actions | -11 -10 -10 -10 --------- Run | Yrd Mat Min Sub Total 639 | 50 242 139 208 Wait 1 | . 1 . . Move 577 | 43 199 133 202 Hop . | . . . . Pick Up 11 | 3 5 1 2 Fast Attach . | . . . . Attach 11 | 3 5 2 1 Detach 3 | . . 2 1 Swap . | . . . . Drop . | . . . . Fire 35 | 1 32 1 1 Melee . | . . . . Ram . | . . . . Kick . | . . . . Crush . | . . . . Escape Stasis . | . . . . Rewire . | . . . . Trap . | . . . . Miscellaneous 1 | . . . 1 Route ------- -11/Scrapyard -10/Materials -10/Mines -10/Subcaves History --------- Turn | Location | Event 4 | -11/Scrapyard | Discovered new exit (range 16) 57 | -11/Scrapyard | Entered Materials 213 | -10/Materials | Core integrity fell below 50% 247 | -10/Materials | Lost 3 parts (1p2w) 248 | -10/Materials | Discovered new exit (range 16) 317 | -10/Materials | Build established: Mutant 342 | -10/Materials | Core integrity fell below 20% 373 | -10/Materials | Entered Mines 378 | -10/Mines | Found the Drone Emporium 379 | -10/Mines | Found Prototype Device 380 | -10/Mines | Identified Decoy Drone Bay 410 | -10/Mines | Learned Materials terminal intel 425 | -10/Mines | Discovered new exit (range 10) 429 | -10/Mines | Entered Subcaves 454 | -10/Subcaves | Learned 4 Materials zone layouts 459 | -10/Subcaves | Released subatomizers from SUBCON Basin 511 | -10/Subcaves | Destroyed by Piercing Trap Last Messages --------------- happening. >>Release Inventory Accessing inventory controls... Collection purity confirmed 100%... Ejecting SUBCON Basin... Delivery behind schedule, handle with care! Released subatomizers from SUBCON Basin. Connecting with SUBCON Basin Controls... Searching scrap... Found Sub. Machine Gun. Found Battle Rifle. Found 70 Matter. Acquired Battle Rifle. Subatomizers dissect the Sub. Machine Gun. Acquired 42 matter. Acquired Sub. Machine Gun. OF-4K0(u) builds Twisted Machinery. Triggered Piercing Trap. Spikes shoot up from the floor. Critical hit (Impale). Map ----- +----------------------------------------------------+ | | | | | | | | | | | | | | | | | | | | | | | | | | | | | ?????????????????????????????????????????????????? | | ?????????????????????????????????????????????????? | | ?????????????????????????????????????????????????? | | ?????????????????????????????????????????????????? | | ?????????????????????????????????????????????????? | | ?????????????????????????????????????????????????? | | ??????????????????????##?????????????????????????? | | ??????????????????????# ?????????????????????????? | | ??????????????????????# ?????????????????????????? | | ??????????????????????# ####?????????????????????? | | ????????????????# #### ##????????????????????? | | ?????????????##$$ @ #????????????????????? | | ?????????????#< ##### $#????????????????????? | | ?????????????#" # ##????????????????????? | | ????????####### ## <#?????????????????????? | | ???????## ## ## " ## "####?????????????????????? | | ######## ######< ###??????????????????????? | | # ## ### " ###????????????????????? | | #????????????????????? | | ###### ?????????????? | | ## #???? % #?????????????? | | # ######### #??? ## #?????????????? | | # ??????## #??? #? ??????????????? | | ## ?????# #????#?? %??????????????? | | ?? #???# ## #???????? %# ??????????????? | | ?? #??# #######????????? ##???????????????? | | ??# ## #?????????????????#????????????????? | | ??? ??????????????????????????????????? | | ??? ??????????????????????????????????? | | ??? # ?????????????????????????????????? | | ??? ### ## ?????????????????????????????????? | | ???? ?? ?? ????????????????????????????????? | | ???? #??? ##?? ?????????????????????????????????? | | ???? ?????????#??????????????????????????????????? | | ?????????????????????????????????????????????????? | | ?????????????????????????????????????????????????? | +----------------------------------------------------+ Best States ------------- Heat Dissipation 35 Energy Generation 14 Energy Capacity 250 Matter Stores 300 Matter Capacity 300 Sight Range 16 Terrain Scan Density 10 Evasion (%) 62 Item Schematics ----------------- None Robot Schematics ------------------ None Fabricated ------------ Nothing Repaired ---------- Nothing Alien Tech Used ----------------- None Achievements -------------- None Challenges ------------ None Game ------ Seed AlertFireCrosscalibrator Manual? 0 Play Time 00:06:14 Cumulative 145.4 hours Start 2025.09.19 @ 20:17:32 End 2025.09.19 @ 20:22:06 Sessions 1 Manual Loads 0 Difficulty Rogue Special Mode None Game No. 483 Rogue 483 Adventurer 0 Explorer 0 Win Type - Total 0 Types 0/0/0/0/0/0/0/0/0/0 Lore% 54 Gallery% 50 Achievement% 39 Wizard Run 0 Options --------- Layout 1 ASCII 0 Keyboard 0 Movement Mouse Keybinds 0 Fullscreen 2 Font 24/Smallcaps Map View 50x35 Zoom Use 0% Tactical HUD 0 Map Filters NONE Filters NONE Steam 1 RUN: 3c6159d2-ada6-4744-bd20-df4a2eacf9cf